bitfinex-derivatives/quotes_BNBF0:USTF0_20250329
["timestamp","ask_amount","ask_price","bid_price","bid_amount"]
[1743245834899,2.0314194,604.14,603.42,0.2715205]
[1743245835098,2.03143549,604.13,603.42,0.2715205]
[1743245835296,0.82109616,604.12,603.42,0.2715205]
[1743245835495,0.82109616,604.11,603.42,0.2715205]
[1743245835699,0.82109616,604.1,603.42,0.2715205]
[1743245835900,0.82109616,604.09,603.42,0.2715205]
[1743245836098,0.9289195,604.12,603.42,0.2715205]
[1743245836301,0.82056284,604.11,603.42,0.2715205]
[1743245836503,0.49656357,604.35,603.42,2.2415205]
[1743245836702,3.83955893,604.34,603.43,0.2715205]
[1743245836897,3.83955893,604.33,603.43,0.2715205]
[1743245837202,3.83955893,604.32,603.43,0.2715205]
[1743245837405,3.83955893,604.31,603.43,0.2715205]
[1743245837603,3.83955893,604.3,603.43,0.2715205]
[1743245837798,3.83955893,604.29,603.43,0.2715205]
[1743245837996,3.34226654,604.28,603.43,0.2715205]
[1743245838200,3.34226654,604.27,603.42,1.97]
[1743245838403,3.34226654,604.26,603.43,0.27155068]
[1743245838705,3.34226654,604.25,603.44,0.27155411]
[1743245839005,4.2688633,604.24,603.45,0.27155411]
[1743245839205,3.34226654,604.23,603.46,0.27155411]
[1743245839403,3.34180759,604.22,603.47,0.27155411]
[1743245839598,2.0298608,604.21,603.43,0.27155411]
[1743245839904,2.0298608,604.2,603.43,0.27155411]
[1743245840104,0.82025359,604.19,603.43,0.27155411]
[1743245840300,0.82025359,604.18,603.43,0.27155411]
[1743245840505,0.82025359,604.17,603.43,0.27155411]
[1743245840697,0.82025359,604.16,603.43,0.27155411]
[1743245840901,0.92659676,604.19,603.43,0.27155411]
[1743245841099,0.49656935,604.45,603.43,0.27155411]
[1743245841100,0.81978198,604.18,603.43,0.27155411]
[1743245841304,0.81978198,604.17,603.43,0.27155411]
[1743245841508,0.81978198,604.16,603.43,0.27155411]
[1743245841705,0.49656935,604.41,603.43,0.27155411]
[1743245841908,3.83551867,604.4,603.43,0.27155411]
[1743245842107,3.83551867,604.39,603.43,0.27155411]
[1743245842411,3.83551867,604.38,603.43,0.27155411]
[1743245842713,4.76073903,604.37,603.43,0.27155411]
[1743245842909,3.83551867,604.36,603.43,0.27155411]
[1743245843109,3.83551867,604.35,603.43,0.27155411]
[1743245843309,3.83551867,604.34,603.42,1.97]
[1743245843512,3.83551867,604.33,603.43,0.60296282]
[1743245843712,3.33894932,604.32,603.44,0.33143311]
[1743245844012,3.33894932,604.31,603.45,0.27152422]
[1743245844213,3.33894932,604.3,603.46,0.33142213]
[1743245844407,3.33894932,604.29,603.47,0.27152422]
[1743245844612,3.33894932,604.28,603.48,0.33141114]
[1743245844806,3.33894932,604.27,603.49,0.27152422]
[1743245845011,3.33745341,604.26,603.49,0.27152422]
[1743245845211,2.02696614,604.25,603.49,0.27152422]
[1743245845407,0.81953891,604.24,603.49,0.27152422]
[1743245845610,0.81953891,604.23,603.49,0.27152422]
[1743245845808,0.81953891,604.22,603.49,0.27152422]
[1743245846013,0.81953891,604.21,603.5,0.27152386]
[1743245846215,0.81953891,604.2,603.49,0.27152386]
[1743245846514,0.81953891,604.19,603.5,0.27152386]
[1743245846709,0.81953891,604.18,603.49,0.27152386]
[1743245846914,0.81953891,604.17,603.5,0.27152386]
[1743245847115,0.49655576,604.43,603.49,0.27152386]
[1743245847413,3.8319058,604.42,603.5,0.27152386]
[1743245847614,3.8319058,604.41,603.49,0.27152386]
[1743245847809,3.8319058,604.4,603.5,0.27152386]
[1743245848013,0.97513998,604.48,603.51,0.27152386]
[1743245848014,3.83179029,604.39,603.51,0.27152386]
[1743245848214,3.83179029,604.38,603.49,0.27152386]
[1743245848414,3.83179029,604.37,603.5,0.27152386]
[1743245848611,3.83179029,604.36,603.49,0.27152386]
[1743245848814,3.83179029,604.35,603.5,0.27152386]
[1743245849007,3.83179029,604.34,603.49,0.27152386]
[1743245849213,3.83179029,604.33,603.5,0.27152386]
[1743245849408,3.83179029,604.32,603.49,0.27152386]
[1743245849614,3.83179029,604.31,603.49,0.27152386]
[1743245849815,3.83179029,604.3,603.49,0.27152386]
[1743245850016,3.83179029,604.29,603.49,0.27152386]
[1743245850209,3.83179029,604.28,603.49,0.27152386]
[1743245850409,3.83179029,604.27,603.49,0.27152386]
[1743245850613,3.83179029,604.26,603.49,0.27152386]
[1743245850809,3.83179029,604.25,603.49,0.27152386]
[1743245851010,3.83179029,604.24,603.49,0.27152386]
[1743245851213,3.83179029,604.23,603.49,0.27152386]
[1743245851410,3.33523453,604.22,603.49,0.27152386]
[1743245851611,3.33523453,604.21,603.49,0.27152386]
[1743245851815,3.33523453,604.2,603.49,0.27152386]
[1743245852120,3.33447299,604.19,603.49,0.27152386]
[1743245852310,4.25885751,604.18,603.49,0.27152386]
[1743245852509,3.33447299,604.17,603.49,0.27152386]
[1743245852711,3.33447299,604.16,603.49,0.27152386]
[1743245853019,4.25885751,604.15,603.49,0.27152386]
[1743245853210,3.33447299,604.14,603.49,0.27152386]
[1743245853410,2.02462419,604.13,603.49,0.27152386]
[1743245853610,0.8186555,604.12,603.49,0.27152386]
[1743245853910,0.8186555,604.11,603.48,0.33141114]
[1743245854115,0.81800927,604.1,603.49,0.27158379]
[1743245854312,0.81800927,604.09,603.49,0.27158379]
[1743245854516,0.81800927,604.08,603.49,0.27158379]
[1743245854721,0.81800927,604.07,603.49,0.27158379]
[1743245854915,0.49665557,604.35,603.49,0.27158379]
[1743245855115,3.82961355,604.34,603.49,0.27158379]
[1743245855316,4.75343482,604.33,603.5,1.779]
[1743245855511,3.82961355,604.32,603.51,0.27158379]
[1743245855819,4.75343482,604.31,603.52,0.27157509]
[1743245856015,3.82961355,604.3,603.53,0.27157509]
[1743245856212,3.82961355,604.29,603.54,0.27157509]
[1743245856412,3.82961355,604.28,603.55,0.27157509]
[1743245856713,3.82961355,604.27,603.56,0.27157509]
[1743245856918,3.82961355,604.26,603.57,0.27157509]
[1743245857118,3.82961355,604.25,603.58,0.27157509]
[1743245857418,3.33295798,604.24,603.59,0.27157509]
[1743245857615,3.33295798,604.23,603.55,0.27157509]
[1743245857918,3.33295798,604.22,603.56,0.27157509]
[1743245858121,0.8180717,604.21,603.55,0.27157509]
[1743245858418,0.8180717,604.2,603.55,0.27157509]
[1743245858615,0.8180717,604.19,603.59,1.23078804]
[1743245858818,0.92382127,604.21,603.6,0.27157509]
[1743245859021,0.81860362,604.2,603.6,0.27157509]
[1743245859325,0.81860362,604.19,603.61,2.28052323]
[1743245859520,0.49657022,604.43,603.62,0.27152323]
[1743245859815,3.83170977,604.42,603.62,0.27152323]
[1743245860119,3.83170977,604.41,603.62,0.27152323]
[1743245860317,0.9724834,604.51,603.62,0.27152323]
[1743245860318,3.83170977,604.4,603.62,0.27152323]
[1743245860518,3.83170977,604.39,603.62,0.27152323]
[1743245860712,3.83170977,604.38,603.62,0.27152323]
[1743245860918,3.83170977,604.37,603.75,1.23078804]
[1743245861118,3.33513955,604.36,603.76,0.27152323]
[1743245861317,3.33513955,604.35,603.76,0.27152323]
[1743245861620,3.33513955,604.34,603.76,0.27152323]
[1743245861814,1.20711643,604.33,603.76,0.27152323]
[1743245862118,3.336079,604.32,603.76,0.27152323]
[1743245862313,3.336079,604.31,603.76,0.27152323]
[1743245862516,3.336079,604.3,603.76,0.27152323]
[1743245862715,3.336079,604.29,603.76,0.27152323]
[1743245862915,3.3361831,604.28,603.76,0.27152323]
[1743245863222,1.74323943,604.27,603.76,0.27152323]
[1743245863516,0.81883176,604.26,603.76,0.27152323]
[1743245863721,0.81883176,604.25,603.76,0.27152323]
[1743245863926,0.81883176,604.24,603.83,1.23078804]
[1743245864115,0.81883176,604.23,603.83,1.23078804]
[1743245864314,0.81883176,604.22,603.83,1.23078804]
[1743245864515,0.81883176,604.21,603.83,1.23078804]
[1743245864718,0.49654307,604.48,603.83,1.23078804]
[1743245865018,3.83503458,604.47,603.83,1.23078804]
[1743245865220,3.83503458,604.46,603.83,1.23078804]
[1743245865420,3.83503458,604.45,603.83,1.23078804]
[1743245865620,0.92576729,604.46,603.84,0.27149504]
[1743245865621,3.83503458,604.44,603.84,0.27149504]
[1743245865821,3.83503458,604.43,603.8,0.27149504]
[1743245866023,3.83503458,604.42,603.81,0.27149504]
[1743245866217,3.83600702,604.41,603.8,0.27149504]
[1743245866416,3.83600702,604.4,603.81,0.27149504]
[1743245866614,3.33950403,604.39,603.8,0.27149504]
[1743245866816,3.33950403,604.38,603.81,0.27149504]
[1743245867018,3.33950403,604.37,603.8,0.27149504]
[1743245867221,3.33950403,604.36,603.8,0.27149504]
[1743245867524,3.33950403,604.35,603.8,0.27149504]
[1743245867716,2.02780097,604.34,603.8,0.27149504]
[1743245867915,2.02780097,604.33,603.8,0.27149504]
[1743245868122,3.34061836,604.32,603.8,0.27149504]
[1743245868318,3.34061836,604.31,603.8,0.27149504]
[1743245868520,3.34061836,604.3,603.81,0.27151104]
[1743245868724,3.34061836,604.29,603.82,0.27151104]
[1743245868921,3.34061836,604.28,603.82,0.27151104]
[1743245869119,2.02780097,604.27,603.79,1.23078804]
[1743245869319,2.02780097,604.26,603.8,0.2715138]
[1743245869522,2.02780097,604.25,603.8,0.2715138]
[1743245869720,2.02780097,604.24,603.8,0.2715138]
[1743245869922,2.95356826,604.23,603.8,0.2715138]
[1743245870121,0.81981441,604.22,603.8,0.2715138]
[1743245870319,2.03133358,604.21,603.8,0.2715138]
[1743245870538,0.81981441,604.2,603.8,0.2715138]
[1743245870726,2.03114345,604.19,603.79,1.23078804]
[1743245870926,3.34543592,604.18,603.74,1.23078804]
[1743245871126,3.34543592,604.17,603.74,1.23078804]
[1743245871325,3.34543592,604.16,603.74,1.23078804]
[1743245871527,3.34543592,604.15,603.74,1.23078804]
[1743245871723,3.34543592,604.14,603.74,1.23078804]
[1743245871927,3.34543592,604.13,603.74,1.23078804]
[1743245872130,2.03114345,604.12,603.74,1.23078804]
[1743245872331,2.03114345,604.11,603.74,1.23078804]
[1743245872531,2.03114345,604.1,603.74,1.23078804]
[1743245872726,2.03114345,604.09,603.74,1.23078804]
[1743245872928,0.81981441,604.08,603.74,1.23078804]
[1743245873129,1.7455817,604.07,603.74,1.23078804]
[1743245873326,0.82314051,604.06,603.61,2.009]
[1743245873634,0.97459697,604.38,603.61,2.009]
[1743245873635,0.92576729,604.05,603.62,0.27158157]
[1743245874337,0.92576729,604.04,603.62,0.27158157]
[1743245874936,0.92576729,604.03,603.62,0.27158157]
[1743245875236,0.49664837,604.26,603.62,0.27158157]
[1743245875537,3.85306703,604.25,603.62,0.27158157]
[1743245875737,3.85306703,604.24,603.62,0.27158157]
[1743245875936,3.85306703,604.23,603.62,0.27158157]
[1743245876134,3.85306703,604.22,603.62,0.27158157]
[1743245876335,3.85306703,604.21,603.62,0.27158157]
[1743245876537,3.85306703,604.2,603.62,0.27158157]
[1743245876734,4.78347004,604.19,603.63,0.27157788]
[1743245876934,3.85306703,604.18,603.62,0.27157788]
[1743245877135,4.78347004,604.17,603.63,0.27157788]
[1743245877437,3.8530669,604.16,603.64,0.27157788]
[1743245877639,3.8530669,604.15,603.62,0.27157788]
[1743245877932,3.8530669,604.14,603.63,0.27157788]
[1743245878137,3.35641866,604.13,603.62,0.27157788]
[1743245878436,0.93040301,604.15,603.61,2.009]
[1743245878437,3.85308366,604.12,603.61,2.009]
[1743245878635,3.85308366,604.11,603.62,0.27159755]
[1743245878838,3.85308366,604.1,603.62,0.27159755]
[1743245879040,3.35641866,604.09,603.62,0.27159755]
[1743245879339,3.35641866,604.08,603.63,1.837]
[1743245879536,3.35641866,604.07,603.63,1.837]
[1743245879732,3.35641866,604.06,603.64,0.27159422]
[1743245879938,3.35641866,604.05,603.64,0.27159422]
[1743245880138,3.35641866,604.04,603.64,0.27159422]
[1743245880439,0.97459697,604.43,603.63,1.837]
[1743245880640,0.93183783,604.03,603.63,1.837]
[1743245880833,0.93183783,604.03,603.64,0.27155405]
[1743245881439,2.49783122,605.49,603.64,0.27155405]
[1743245881440,0.49659988,604.38,603.64,0.27155405]
[1743245881635,3.86071078,604.37,603.63,1.837]
[1743245881841,3.86071078,604.36,603.63,1.837]
[1743245882041,4.79318007,604.35,603.64,0.27152632]
[1743245882237,3.86071078,604.34,603.64,0.27152632]
[1743245882440,3.86071078,604.33,603.64,0.27152632]
[1743245882646,3.86071078,604.32,603.64,0.27152632]
[1743245882938,4.79318007,604.31,603.64,0.27152632]
[1743245883144,3.86071078,604.3,603.64,0.27152632]
[1743245883344,3.86071078,604.29,603.64,0.27152632]
[1743245883645,3.86071078,604.28,603.64,0.27152632]
[1743245883847,3.86071078,604.27,603.64,0.27152632]
[1743245884039,3.86071078,604.26,603.64,0.27152632]
[1743245884245,3.86071078,604.25,603.64,0.27152632]
[1743245884444,4.79318007,604.24,603.64,0.27152632]
[1743245884644,3.86071078,604.23,603.64,0.27152632]
[1743245884847,3.86071078,604.22,603.64,0.27152632]
[1743245885040,3.3641109,604.21,603.64,0.27152632]
[1743245885345,3.86066524,604.2,603.64,0.27152632]
[1743245885539,3.3641109,604.19,603.64,0.27152632]
[1743245885743,3.3641109,604.18,603.65,2.084]
[1743245885938,3.36482192,604.17,603.65,2.084]
[1743245886143,3.36482192,604.16,603.66,0.27152632]
[1743245886441,3.36482192,604.15,603.69,1.23078804]
[1743245886644,2.04367905,604.14,603.7,0.27152425]
[1743245886839,2.04367905,604.13,603.7,0.27152425]
[1743245887039,2.04367905,604.12,603.7,0.27152425]
[1743245887245,2.04367905,604.11,603.71,0.27150013]
[1743245887542,0.82621243,604.1,603.72,0.27150013]
[1743245887745,0.93246929,604.11,603.7,0.27150013]
[1743245887943,0.82620919,604.1,603.71,0.27150013]
[1743245888144,0.82620284,604.09,603.72,0.27150013]
[1743245888440,0.93246929,604.1,603.73,0.27150013]
[1743245888645,0.82616746,604.09,603.7,0.27150013]
[1743245888947,0.93246929,604.1,603.69,1.23078804]
[1743245888948,0.93246929,604.1,603.71,0.27150013]
[1743245889148,0.93246929,604.08,603.87,1.23078804]
[1743245889443,2.04402565,604.07,603.87,1.23078804]
[1743245889641,2.97649494,604.06,603.87,1.23078804]
[1743245889847,2.04402565,604.05,603.87,1.23078804]
[1743245890148,0.82617624,604.04,603.87,1.23078804]
[1743245890346,0.93246929,604.04,603.87,1.23078804]
[1743245890646,0.8260106,604.03,603.87,1.23078804]
[1743245890847,0.93246929,604.03,603.87,1.23078804]
[1743245891348,0.93246929,604.03,603.72,1.419]
[1743245891546,0.93246929,604.02,603.73,0.27153582]
[1743245891741,0.93274839,604.01,603.73,0.27153582]
[1743245892047,0.93274839,604.01,603.72,1.419]
[1743245892247,0.93274839,604.0,603.72,1.419]
[1743245892843,0.49657564,604.35,603.72,1.419]
[1743245893049,3.86145204,604.34,603.72,1.419]
[1743245893239,3.86145204,604.33,603.72,1.419]
[1743245893444,3.86145204,604.32,603.72,1.419]
[1743245893742,3.86145204,604.31,603.72,1.419]
[1743245893941,4.79404962,604.3,603.72,1.419]
[1743245894146,3.86145204,604.29,603.72,1.419]
[1743245894451,3.86145204,604.28,603.72,1.419]
[1743245894645,3.3648764,604.27,603.72,1.419]
[1743245894946,3.3648764,604.26,603.72,1.419]
[1743245895142,4.29747398,604.25,603.72,1.419]
[1743245895347,3.3648764,604.24,603.72,1.419]
[1743245895541,3.3648764,604.23,603.72,1.419]
[1743245895744,3.3648764,604.22,603.72,1.419]
[1743245895945,3.3648764,604.21,603.72,1.419]
[1743245896145,2.04343128,604.2,603.73,0.2714969]
[1743245896349,2.04343128,604.19,603.73,0.2714969]
[1743245896647,2.04343128,604.18,603.72,1.419]
[1743245896850,0.93259758,604.19,603.72,1.419]
[1743245896851,2.04343128,604.17,603.72,1.419]
[1743245897047,2.97602886,604.16,603.72,1.419]
[1743245897347,2.04343128,604.15,603.72,1.419]
[1743245897547,2.04343128,604.14,603.72,1.419]
[1743245897749,2.04343128,604.13,603.72,1.419]
[1743245897950,2.04343128,604.12,603.72,1.419]
[1743245898145,2.04343128,604.11,603.73,0.27150085]
[1743245898344,0.8259032,604.1,603.73,0.27150085]
[1743245898547,0.93259758,604.1,603.72,1.419]
[1743245898948,0.82588824,604.09,603.72,1.419]
[1743245899147,0.93259758,604.09,603.72,1.419]
[1743245899853,0.93259758,604.09,603.73,0.271504]
[1743245900150,0.93259758,604.08,603.73,0.271504]
[1743245900450,0.93259758,604.07,603.73,0.271504]
[1743245900649,0.93259758,604.07,603.72,1.419]
[1743245900849,0.93259758,604.07,603.73,0.27150319]
[1743245901244,0.98188838,604.41,603.73,0.27150319]
[1743245901445,3.86189675,604.4,603.73,0.27150319]
[1743245901649,0.98188838,604.37,603.73,0.27150319]
[1743245901853,3.86189675,604.36,603.73,0.27150319]
[1743245902046,3.86189675,604.35,603.73,0.27150319]
[1743245902252,3.86189675,604.34,603.73,0.27150319]
[1743245902445,3.86189675,604.33,603.73,0.27150319]
[1743245902651,3.86189675,604.32,603.73,0.27150319]
[1743245902844,3.86189675,604.31,603.73,0.27150319]
[1743245903049,3.86189675,604.3,603.73,0.27150319]
[1743245903250,4.79472172,604.29,603.73,0.27150319]
[1743245903551,3.86165412,604.28,603.66,0.27150319]
[1743245903751,3.86165412,604.27,603.67,0.27150319]
[1743245903950,3.86165412,604.26,603.8,1.23078804]
[1743245904150,4.79447909,604.25,603.81,0.27150319]
[1743245904346,3.36513645,604.24,603.81,0.27150319]
[1743245904550,3.36513645,604.23,603.81,0.27150319]
[1743245904753,4.29796142,604.22,603.81,0.27150319]
[1743245904952,3.36513645,604.21,603.8,1.23078804]
[1743245905151,3.36513645,604.2,603.81,0.2715013]
[1743245905452,3.36513645,604.19,603.81,0.2715013]
[1743245905753,3.36513645,604.18,603.81,0.2715013]
[1743245905946,0.93282497,604.19,603.81,1.9705013]
[1743245905947,3.36513645,604.17,603.81,1.9705013]
[1743245906149,2.97647259,604.16,603.82,0.2715013]
[1743245906346,2.04364762,604.15,603.82,0.2715013]
[1743245906555,2.04364762,604.14,603.82,0.2715013]
[1743245906753,2.04364762,604.13,603.82,0.2715013]
[1743245906955,2.04345074,604.12,603.82,0.2715013]
[1743245907153,0.82590099,604.11,603.82,0.2715013]
[1743245907350,0.93282497,604.13,603.82,0.2715013]
[1743245907557,2.04333518,604.12,603.82,0.2715013]
[1743245907758,0.93282497,604.11,603.82,0.2715013]
[1743245908653,0.93282497,604.1,603.83,2.009]
[1743245908853,0.93282497,604.1,603.84,0.27149455]
[1743245909254,0.49649619,604.44,603.84,0.27149455]
[1743245909459,3.86183322,604.43,603.84,0.27149455]
[1743245909658,3.86183322,604.42,603.84,0.27149455]
[1743245909853,3.86183322,604.41,603.84,0.27149455]
[1743245910059,3.86183322,604.4,603.84,0.27149455]
[1743245910259,3.86183322,604.39,603.84,0.27149455]
[1743245910558,3.86183322,604.38,603.85,0.2714901]
[1743245910751,4.79459409,604.37,603.84,0.2714901]
[1743245910955,3.86183322,604.36,603.85,0.2714901]
[1743245911253,3.86183322,604.35,603.86,0.2714901]
[1743245911453,3.86190871,604.34,603.84,0.2714901]
[1743245911654,3.86190871,604.33,603.83,2.009]
[1743245911963,3.86190871,604.32,603.84,0.27150377]
[1743245912159,3.86190871,604.31,603.83,2.009]
[1743245912359,3.86190871,604.3,603.85,1.532]
[1743245912556,3.86190871,604.29,603.85,1.532]
[1743245912761,3.86190871,604.28,603.85,1.532]
[1743245912961,4.79466958,604.27,603.85,1.532]
[1743245913158,3.86190871,604.26,603.85,1.532]
[1743245913363,3.86190871,604.25,603.85,1.532]
[1743245913564,4.79471704,604.24,603.85,1.532]
[1743245913763,3.86198302,604.23,603.85,1.532]
[1743245913958,4.79474389,604.22,603.85,1.532]
[1743245914159,3.86198302,604.21,603.85,1.532]
[1743245914357,3.86198302,604.2,603.85,1.532]
[1743245914562,3.36541252,604.19,603.85,1.532]
[1743245914862,3.36541252,604.18,603.85,1.532]
[1743245915062,3.36541252,604.17,603.85,1.532]
[1743245915259,3.36541252,604.16,603.85,1.532]
[1743245915457,3.36541252,604.15,603.85,1.532]
[1743245915660,3.36541252,604.14,603.85,1.532]
[1743245915861,5.8776221,611.49,603.85,1.532]
[1743245915862,3.36541252,604.13,603.85,1.532]
[1743245916062,3.36541252,604.12,603.85,1.532]
[1743245916259,3.36541252,604.11,603.85,1.532]
[1743245916461,2.04379319,604.1,603.85,1.532]
[1743245916661,2.04379319,604.09,603.85,1.532]
[1743245916858,2.04379319,604.08,603.85,1.532]
[1743245917165,2.97655406,604.07,603.85,1.532]
[1743245917361,3.8611052,604.06,603.85,1.532]
[1743245917664,4.79391461,604.05,603.85,1.532]
[1743245917863,3.86117254,604.04,603.85,1.532]
[1743245918065,3.86117254,604.03,603.85,1.532]
[1743245918367,3.86117254,604.02,603.85,1.532]
[1743245918559,3.86117254,604.01,603.85,1.532]
[1743245918763,3.86117254,604.0,603.85,1.532]
[1743245918963,3.86117254,603.99,603.85,1.532]
[1743245919163,3.86121377,603.98,603.85,1.532]
[1743245919365,3.86123395,603.97,603.85,1.532]
[1743245919564,3.3644916,603.96,603.85,1.532]
[1743245919765,3.36197685,603.95,603.85,1.532]
[1743245919964,3.36197685,603.94,603.85,1.532]
[1743245920163,0.93276087,603.95,603.85,1.532]
[1743245920164,3.36197685,603.93,603.85,1.532]
[1743245920360,3.36197685,603.92,603.85,1.532]
[1743245920563,2.04247178,603.91,603.85,1.532]
[1743245920763,2.04247178,603.9,603.85,1.532]
[1743245921065,0.93276087,603.91,603.85,1.532]
[1743245921066,2.04247178,603.89,603.85,1.532]
[1743245921268,2.04004582,603.88,603.85,1.532]
[1743245921570,2.04004582,603.87,603.85,1.532]
[1743245921865,0.82469067,603.86,603.85,1.532]
[1743245922065,1.75745154,603.86,603.85,1.532]
[1743245922565,0.93276087,603.86,603.85,1.532]
[1743245923564,0.49670772,604.17,603.85,1.532]
[1743245923760,3.35692038,604.16,603.85,1.532]
[1743245923966,3.35692038,604.15,603.85,1.532]
[1743245924161,3.35692038,604.14,603.85,1.532]
[1743245924363,3.35692038,604.13,603.85,1.532]
[1743245924560,3.35692038,604.12,603.85,1.532]
[1743245924862,3.35692038,604.11,603.85,1.532]
[1743245925066,3.35692038,604.1,603.85,1.532]
[1743245925262,3.35692038,604.09,603.85,1.532]
[1743245925463,3.35695405,604.08,603.85,1.532]
[1743245925667,2.03859236,604.07,603.85,1.532]
[1743245925868,2.03859236,604.06,603.85,1.532]
[1743245926067,2.03859236,604.05,603.85,1.532]
[1743245926262,2.03859236,604.04,603.85,1.532]
[1743245926463,2.03859236,604.03,603.85,1.532]
[1743245926663,2.03859236,604.02,603.85,1.532]
[1743245926869,0.82395501,604.01,603.85,1.532]
[1743245927069,0.93051888,604.0,603.85,1.532]
[1743245927764,0.93051888,603.99,603.85,1.532]
[1743245928369,0.93051888,603.98,603.85,1.532]
[1743245928869,0.93051888,603.97,603.85,1.532]
[1743245929465,0.49661055,604.25,603.85,1.532]
[1743245929668,3.85504207,604.24,603.85,1.532]
[1743245929863,3.85504207,604.23,603.85,1.532]
[1743245930065,3.85504207,604.22,603.85,1.532]
[1743245930270,3.85504207,604.21,603.85,1.532]
[1743245930471,3.85504207,604.2,603.85,1.532]
[1743245930672,3.35843152,604.19,603.85,1.532]
[1743245930873,3.35843152,604.18,603.85,1.532]
[1743245931073,3.35843152,604.17,603.85,1.532]
[1743245931371,3.35849721,604.16,603.85,1.532]
[1743245931574,3.85509835,604.15,603.85,1.532]
[1743245931775,3.85509835,604.14,603.85,1.532]
[1743245931976,4.78601207,604.13,603.85,1.532]
[1743245932172,3.35849721,604.12,603.85,1.532]
[1743245932372,3.35849721,604.11,603.85,1.532]
[1743245932578,3.35849721,604.1,603.85,1.532]
[1743245932771,3.35849721,604.09,603.85,1.532]
[1743245932971,3.35849721,604.08,603.85,1.532]
[1743245933178,3.3585105,604.07,603.85,1.532]
[1743245933377,3.8546206,604.06,603.85,1.532]
[1743245933578,3.8546206,604.05,603.85,1.532]
[1743245933875,3.8546206,604.04,603.85,1.532]
[1743245934177,4.78553432,604.03,603.85,1.532]
[1743245934378,0.98000878,604.0,603.85,1.532]
[1743245934581,0.98000878,603.98,603.85,1.532]
[1743245934778,4.83462938,603.97,603.85,1.532]
[1743245934977,3.8546206,603.96,603.85,1.532]
[1743245935179,3.85312443,603.95,603.85,1.532]
[1743245935380,3.85312443,603.94,603.85,1.532]
[1743245935581,3.85312443,603.93,603.71,1.99]
[1743245935776,3.85312443,603.92,603.71,1.99]
[1743245935979,4.78403815,603.91,603.72,1.699]
[1743245936284,3.35641655,603.9,603.72,1.699]
[1743245936480,4.28733027,603.89,603.72,1.699]
[1743245936679,3.35641655,603.88,603.72,1.699]
[1743245936880,3.35641655,603.87,603.72,1.699]
[1743245937081,3.35094971,603.86,603.72,1.699]
[1743245937277,3.35094971,603.85,603.72,1.699]
[1743245937483,2.03495041,603.84,603.72,1.699]
[1743245937785,2.96586413,603.83,603.72,1.699]
[1743245938080,1.75341328,603.82,603.72,1.699]
[1743245938279,0.93091372,603.82,603.72,1.699]
[1743245938684,0.93091372,603.81,603.72,1.699]
[1743245939786,1.31531215,604.02,603.72,1.699]
[1743245939988,2.0340613,604.01,603.72,1.699]
[1743245940187,2.0340613,604.0,603.72,1.699]
[1743245940381,2.0340613,603.99,603.72,1.699]
[1743245940582,0.92844908,604.0,603.72,1.699]
[1743245941387,0.92844908,603.99,603.72,1.699]
[1743245941584,0.82216167,603.98,603.72,1.699]
[1743245941790,0.92844908,603.99,603.73,1.314]
[1743245942089,0.92844908,603.98,603.73,1.314]
[1743245942689,0.92844908,603.97,603.73,1.314]
[1743245943092,0.49670183,604.31,603.73,1.314]
[1743245943293,3.84677683,604.3,603.73,1.314]
[1743245943492,3.84677683,604.29,603.73,1.314]
[1743245943793,3.84677683,604.28,603.73,1.314]
[1743245943994,3.84677683,604.27,603.73,1.314]
[1743245944195,3.84677683,604.26,603.73,1.314]
[1743245944390,3.84677683,604.25,603.73,1.314]
[1743245944591,3.84677683,604.24,603.73,1.314]
[1743245944790,3.84677683,604.23,603.73,1.314]
[1743245945094,4.77536626,604.22,603.73,1.314]
[1743245945290,3.84677683,604.21,603.73,1.314]
[1743245945495,3.84677683,604.2,603.73,1.314]
[1743245945691,3.84677683,604.19,603.73,1.314]
[1743245945888,3.84677683,604.18,603.73,1.314]
[1743245946089,3.84677683,604.17,603.73,1.314]
[1743245946294,3.350075,604.16,603.73,1.314]
[1743245946495,3.350075,604.15,603.73,1.314]
[1743245946692,3.350075,604.14,603.73,1.314]
[1743245946895,3.350075,604.13,603.73,1.314]
[1743245947093,3.350075,604.12,603.73,1.314]
[1743245947290,3.350075,604.11,603.73,1.314]
[1743245947498,2.03443364,604.1,603.73,1.314]
[1743245947695,2.03443364,604.09,603.73,1.314]
[1743245947894,0.82227585,604.08,603.73,1.314]
[1743245948097,0.92858943,604.1,603.73,1.314]
[1743245948297,0.82234351,604.09,603.73,1.314]
[1743245948495,0.92858943,604.07,603.73,1.314]